fUSD/lending_fUSD_20250112
["ID","MTS","AMOUNT","RATE_DAILY","PERIOD"]
[348589330,1736647835871,-500.0,9.982e-05,2]
[348589331,1736647835881,-621.84,9.982e-05,2]
[348589332,1736647835890,-500.0,9.982e-05,2]
[348589333,1736647835899,-501.32653624,9.982e-05,2]
[348589334,1736647835910,-500.0,9.982e-05,2]
[348589335,1736647835919,-502.79822462,9.982e-05,2]
[348589336,1736647835928,-500.0,9.982e-05,2]
[348589337,1736647835937,-501.99515593,9.982e-05,2]
[348589338,1736647835946,-536.57,9.982e-05,2]
[348589339,1736647835956,-500.0,9.982e-05,2]
[348589340,1736647835965,-500.0,9.982e-05,2]
[348589341,1736647835975,-500.0,9.982e-05,2]
[348589342,1736647835985,-500.0,9.982e-05,2]
[348589343,1736647835994,-529.24563243,9.982e-05,2]
[348589344,1736647836003,-541.61866697,9.982e-05,2]
[348589345,1736647836012,-500.0,9.982e-05,2]
[348589346,1736647836022,-500.0,9.982e-05,2]
[348589347,1736647836031,-547.6196063,9.982e-05,2]
[348589348,1736647836041,-500.0,9.982e-05,2]
[348589349,1736647836050,-500.0,9.982e-05,2]
[348589350,1736647836060,-1416.13,9.982e-05,2]
[348589351,1736647836071,-322.30654379,9.982e-05,2]
[348589352,1736647836080,-500.0,9.982e-05,2]
[348589353,1736647836090,-503.18482829,9.982e-05,2]
[348589354,1736647836099,-503.88922658,9.982e-05,2]
[348589355,1736647836109,-501.53969569,9.982e-05,2]
[348589356,1736647836118,-501.72714156,9.982e-05,2]
[348589357,1736647836128,-503.1067666,9.982e-05,2]
[348589358,1736647836137,-700.02,9.982e-05,2]
[348589359,1736647836147,-502.95688555,9.982e-05,2]
[348589360,1736647836156,-500.0,9.982e-05,2]
[348589361,1736647836166,-668.88,9.982e-05,2]
[348589362,1736647836175,-500.0,9.982e-05,2]
[348589363,1736647836184,-500.0,9.982e-05,2]
[348589364,1736647836193,-500.0,9.982e-05,2]
[348589365,1736647836202,-500.0,9.982e-05,2]
[348589366,1736647836211,-3643.6,9.982e-05,2]
[348589367,1736647836222,-500.0,9.982e-05,2]
[348589368,1736647836231,-495.9389018,9.982e-05,2]
[348589369,1736647836240,-500.0,9.982e-05,2]
[348589370,1736647836250,-500.0,9.982e-05,2]
[348589371,1736647836260,-500.0,9.982e-05,2]
[348589372,1736647836269,-500.0,9.982e-05,2]
[348589373,1736647836279,-502.70626276,9.982e-05,2]
[348589374,1736647836288,-641.21,9.982e-05,2]
[348589375,1736647836298,-500.0,9.982e-05,2]
[348589376,1736647836307,-500.0,9.982e-05,2]
[348589377,1736647836317,-500.0,9.982e-05,2]
[348589378,1736647836327,-500.0,9.982e-05,2]
[348589379,1736647836336,-1961.28,9.982e-05,2]
[348589380,1736647836346,-500.0,9.982e-05,2]
[348589381,1736647836355,-500.0,9.982e-05,2]
[348589382,1736647836364,-500.0,9.982e-05,2]
[348589383,1736647836373,-464.23365953,9.982e-05,2]
[348589384,1736647836383,-500.0,9.982e-05,2]
[348589385,1736647836392,-500.0,9.982e-05,2]
[348589386,1736647836401,-500.0,9.982e-05,2]
[348589387,1736647836411,-500.0,9.982e-05,2]
[348589388,1736647836420,-500.0,9.982e-05,2]
[348589389,1736647836429,-500.0,9.982e-05,2]
[348589390,1736647836438,-500.0,9.982e-05,2]
[348589391,1736647836447,-500.0,9.982e-05,2]
[348589392,1736647836456,-500.0,9.982e-05,2]
[348589393,1736647836466,-500.0,9.982e-05,2]
[348589394,1736647836475,-500.0,9.982e-05,2]
[348589395,1736647836485,-500.0,9.982e-05,2]
[348589396,1736647836494,-503.65902338,9.982e-05,2]
[348589397,1736647836503,-2054.79,9.982e-05,2]
[348589398,1736647836513,-500.0,9.982e-05,2]
[348589399,1736647836522,-408.28806937,9.982e-05,2]
[348589400,1736647836532,-621.94,9.982e-05,2]
[348589401,1736647836541,-500.0,9.982e-05,2]
[348589402,1736647836550,-500.0,9.982e-05,2]
[348589403,1736647836559,-500.0,9.982e-05,2]
[348589404,1736647836569,-503.29296515,9.982e-05,2]
[348589405,1736647836578,-500.0,9.982e-05,2]
[348589406,1736647836587,-500.0,9.982e-05,2]
[348589407,1736647836596,-500.0,9.982e-05,2]
[348589408,1736647836605,-500.0,9.982e-05,2]
[348589409,1736647836615,-500.0,9.982e-05,2]
[348589410,1736647836624,-500.0,9.982e-05,2]
[348589411,1736647836637,-1225.663381,9.983e-05,2]
[348589412,1736647836647,-1116.37,9.983e-05,2]
[348589413,1736647836656,-515.63,9.983e-05,2]
[348589414,1736647836665,-500.0,9.983e-05,2]
[348589415,1736647836675,-500.0,9.983e-05,2]
[348589416,1736647836685,-3373.01,9.983e-05,2]
[348589417,1736647836695,-500.0,9.983e-05,2]
[348589418,1736647836704,-574.31,9.983e-05,2]
[348589419,1736647836714,-500.0,9.983e-05,2]
[348589420,1736647836725,-916.02,9.983e-05,2]
[348589421,1736647836734,-500.0,9.983e-05,2]
[348589422,1736647836743,-594.3,9.983e-05,2]
[348589423,1736647836752,-500.0,9.983e-05,2]
[348589424,1736647836761,-500.0,9.983e-05,2]
[348589425,1736647836770,-500.0,9.983e-05,2]
[348589426,1736647836779,-500.0,9.983e-05,2]
[348589427,1736647836789,-500.0,9.983e-05,2]
[348589428,1736647836798,-500.0,9.983e-05,2]
[348589429,1736647836808,-500.0,9.983e-05,2]
[348589430,1736647836817,-500.0,9.983e-05,2]
[348589431,1736647836827,-500.0,9.983e-05,2]
[348589432,1736647836982,-500.0,9.983e-05,2]
[348589433,1736647836992,-500.0,9.983e-05,2]
[348589434,1736647837001,-500.0,9.983e-05,2]
[348589435,1736647837011,-500.0,9.983e-05,2]
[348589436,1736647837020,-610.56,9.983e-05,2]
[348589437,1736647837030,-500.0,9.983e-05,2]
[348589438,1736647837040,-500.0,9.983e-05,2]
[348589439,1736647837049,-741.53,9.983e-05,2]
[348589440,1736647837059,-523.75536882,9.983e-05,2]
[348589441,1736647837068,-500.0,9.983e-05,2]
[348589442,1736647837078,-500.0,9.983e-05,2]
[348589443,1736647837087,-541.25477481,9.983e-05,2]
[348589444,1736647837096,-500.0,9.983e-05,2]
[348589445,1736647837105,-500.0,9.983e-05,2]
[348589446,1736647837115,-572.79,9.983e-05,2]
[348589447,1736647837124,-500.0,9.983e-05,2]
[348589448,1736647837133,-1078.55,9.983e-05,2]
[348589449,1736647837142,-500.0,9.983e-05,2]
[348589450,1736647837151,-500.0,9.983e-05,2]
[348589451,1736647837160,-594.17,9.983e-05,2]
[348589452,1736647837169,-500.0,9.983e-05,2]
[348589453,1736647837177,-500.0,9.983e-05,2]
[348589454,1736647837186,-500.0,9.983e-05,2]
[348589455,1736647837196,-1195.6,9.983e-05,2]
[348589456,1736647837205,-500.0,9.983e-05,2]
[348589457,1736647837214,-636.84806942,9.983e-05,2]
[348589458,1736647837223,-624.76,9.983e-05,2]
[348589459,1736647837233,-500.0,9.983e-05,2]
[348589460,1736647837242,-1568.82,9.983e-05,2]
[348589461,1736647837251,-500.0,9.983e-05,2]
[348589462,1736647837261,-500.0,9.983e-05,2]
[348589463,1736647837270,-500.0,9.983e-05,2]
[348589464,1736647837280,-519.72,9.983e-05,2]
[348589465,1736647837289,-500.0,9.983e-05,2]
[348589466,1736647837298,-500.0,9.983e-05,2]
[348589467,1736647837307,-617.1,9.983e-05,2]
[348589468,1736647837316,-500.0,9.983e-05,2]
[348589469,1736647837325,-908.76,9.983e-05,2]
[348589470,1736647837334,-500.0,9.983e-05,2]
[348589471,1736647837343,-535.46,9.983e-05,2]
[348589472,1736647837352,-680.39,9.983e-05,2]
[348589473,1736647837360,-750.28,9.983e-05,2]
[348589474,1736647837370,-500.0,9.983e-05,2]
[348589475,1736647837378,-500.0,9.983e-05,2]
[348589476,1736647837387,-500.0,9.983e-05,2]
[348589477,1736647837396,-2388.38,9.983e-05,2]
[348589478,1736647837405,-500.0,9.983e-05,2]
[348589479,1736647837414,-500.0,9.983e-05,2]
[348589480,1736647837423,-500.0,9.983e-05,2]
[348589481,1736647837432,-500.0,9.983e-05,2]
[348589482,1736647837442,-836.26,9.983e-05,2]
[348589483,1736647837451,-500.0,9.983e-05,2]
[348589484,1736647837459,-1437.31,9.983e-05,2]
[348589485,1736647837469,-500.0,9.983e-05,2]
[348589486,1736647837478,-746.02,9.983e-05,2]
[348589487,1736647837487,-670.08,9.983e-05,2]
[348589488,1736647837496,-3825.97,9.983e-05,2]
[348589489,1736647837505,-844.32,9.983e-05,2]
[348589490,1736647837514,-724.45,9.983e-05,2]
[348589491,1736647837523,-500.0,9.983e-05,2]
[348589492,1736647837532,-2296.9,9.983e-05,2]
[348589493,1736647837541,-500.0,9.983e-05,2]
[348589494,1736647837550,-500.0,9.983e-05,2]
[348589495,1736647837559,-500.0,9.983e-05,2]
[348589496,1736647837568,-505.2049603,9.983e-05,2]
[348589497,1736647837577,-500.0,9.983e-05,2]
[348589498,1736647837586,-500.0,9.983e-05,2]
[348589499,1736647837596,-500.0,9.983e-05,2]
[348589500,1736647837605,-578.84,9.983e-05,2]
[348589501,1736647837614,-500.0,9.983e-05,2]
[348589502,1736647837623,-1293.18,9.983e-05,2]
[348589503,1736647837635,-500.0,9.983e-05,2]
[348589504,1736647837644,-3334.9,9.983e-05,2]
[348589505,1736647837653,-500.0,9.983e-05,2]
[348589506,1736647837662,-500.0,9.983e-05,2]
[348589507,1736647837672,-637.75,9.983e-05,2]
[348589508,1736647837681,-500.0,9.983e-05,2]
[348589509,1736647837690,-962.37,9.984e-05,2]
[348589510,1736647837699,-500.0,9.984e-05,2]
[348589511,1736647837710,-1120.38,9.984e-05,2]
[348589512,1736647837720,-830.68,9.984e-05,2]
[348589513,1736647837729,-1180.09,9.984e-05,2]
[348589514,1736647837739,-1377.85,9.984e-05,2]
[348589515,1736647837748,-1634.38,9.984e-05,2]
[348589516,1736647837756,-2349.75,9.984e-05,2]
[348589517,1736647837766,-5993.71,9.984e-05,2]
[348589518,1736647837775,-1017.83,9.984e-05,2]
[348589519,1736647837784,-500.0,9.985e-05,2]
[348589520,1736647837793,-500.0,9.985e-05,2]
[348589521,1736647837802,-500.0,9.985e-05,2]
[348589522,1736647837812,-500.0,9.985e-05,2]
[348589523,1736647837822,-500.0,9.985e-05,2]
[348589524,1736647837831,-500.0,9.985e-05,2]
[348589525,1736647837840,-500.0,9.985e-05,2]
[348589526,1736647837849,-504.76080662,9.985e-05,2]
[348589527,1736647837858,-500.0,9.985e-05,2]
[348589528,1736647837867,-231.0469858,9.985e-05,2]
[348589529,1736647837876,-500.0,9.985e-05,2]
[348589530,1736647837885,-500.0,9.985e-05,2]
[348589531,1736647837895,-500.0,9.985e-05,2]
[348589532,1736647837904,-501.6089412,9.985e-05,2]
[348589533,1736647837913,-500.0,9.985e-05,2]
[348589534,1736647837922,-502.90479042,9.985e-05,2]
[348589535,1736647837932,-511.82216377,9.985e-05,2]
[348589536,1736647837941,-500.0,9.985e-05,2]
[348589537,1736647837952,-500.0,9.985e-05,2]
[348589538,1736647837963,-500.0,9.985e-05,2]
[348589539,1736647837972,-500.0,9.985e-05,2]
[348589540,1736647837981,-639.83974759,9.985e-05,2]
[348589541,1736647837990,-500.0,9.985e-05,2]
[348589542,1736647837998,-500.0,9.985e-05,2]
[348589543,1736647838008,-500.0,9.985e-05,2]
[348589544,1736647838017,-500.0,9.985e-05,2]
[348589545,1736647838026,-500.0,9.985e-05,2]
[348589546,1736647838035,-500.0,9.985e-05,2]
[348589547,1736647838044,-500.0,9.985e-05,2]
[348589548,1736647838053,-500.0,9.985e-05,2]
[348589549,1736647838062,-500.0,9.985e-05,2]
[348589550,1736647838071,-510.88967679,9.985e-05,2]
[348589551,1736647838083,-500.0,9.985e-05,2]
[348589552,1736647838092,-500.0,9.985e-05,2]
[348589553,1736647838103,-500.0,9.985e-05,2]
[348589554,1736647838112,-500.0,9.985e-05,2]
[348589555,1736647838122,-500.0,9.985e-05,2]
[348589556,1736647838131,-507.5562926,9.985e-05,2]
[348589557,1736647838141,-500.0,9.985e-05,2]
[348589558,1736647838151,-500.0,9.985e-05,2]
[348589559,1736647838161,-500.0,9.985e-05,2]
[348589560,1736647838171,-500.0,9.985e-05,2]
[348589561,1736647838180,-500.0,9.985e-05,2]
[348589562,1736647838189,-500.0,9.985e-05,2]
[348589563,1736647838198,-418.9840886,9.985e-05,2]
[348589564,1736647838207,-218.43188471,9.985e-05,2]
[348589565,1736647838217,-500.0,9.985e-05,2]
[348589566,1736647838227,-500.0,9.985e-05,2]
[348589567,1736647838236,-510.32053461,9.985e-05,2]
[348589568,1736647838247,-500.0,9.985e-05,2]
[348589569,1736647838257,-500.0,9.985e-05,2]
[348589571,1736647838266,-296.29768553,9.985e-05,2]
[348589573,1736647838276,-500.0,9.985e-05,2]
[348589575,1736647838285,-500.0,9.985e-05,2]
[348589577,1736647838295,-500.0,9.985e-05,2]
[348589579,1736647838304,-500.0,9.985e-05,2]
[348589580,1736647838313,-500.0,9.985e-05,2]
[348589581,1736647838323,-500.0,9.985e-05,2]
[348589582,1736647838332,-500.0,9.985e-05,2]
[348589584,1736647838341,-500.0,9.985e-05,2]
[348589585,1736647838350,-500.0,9.985e-05,2]
[348589586,1736647838359,-500.0,9.985e-05,2]
[348589587,1736647838368,-500.0,9.985e-05,2]
[348589588,1736647838377,-500.0,9.985e-05,2]
[348589589,1736647838387,-500.0,9.985e-05,2]
[348589590,1736647838396,-500.0,9.985e-05,2]
[348589591,1736647838405,-500.0,9.985e-05,2]
[348589592,1736647838414,-500.0,9.985e-05,2]
[348589593,1736647838424,-500.0,9.985e-05,2]
[348589594,1736647838433,-305.50334621,9.985e-05,2]
[348589595,1736647838443,-500.0,9.985e-05,2]
[348589596,1736647838452,-852.63,9.985e-05,2]
[348589597,1736647838462,-500.0,9.985e-05,2]
[348589598,1736647838472,-1182.32,9.985e-05,2]
[348589599,1736647838481,-1355.07,9.985e-05,2]
[348589600,1736647838490,-1625.77,9.985e-05,2]
[348589601,1736647838499,-1274.08,9.985e-05,2]
[348589602,1736647838507,-3575.34,9.985e-05,2]
[348589603,1736647838517,-1357.35,9.985e-05,2]
[348589604,1736647838525,-500.0,9.986e-05,2]
[348589605,1736647838534,-500.0,9.986e-05,2]
[348589606,1736647838545,-558.83,9.986e-05,2]
[348589607,1736647838554,-500.0,9.986e-05,2]
[348589608,1736647838564,-546.16,9.986e-05,2]
[348589609,1736647838574,-500.0,9.986e-05,2]
[348589610,1736647838585,-500.0,9.986e-05,2]
[348589611,1736647838594,-624.48,9.986e-05,2]
[348589612,1736647838604,-500.0,9.986e-05,2]
[348589613,1736647838613,-500.0,9.986e-05,2]
[348589614,1736647838624,-500.0,9.986e-05,2]
[348589615,1736647838635,-500.0,9.986e-05,2]
[348589616,1736647838644,-808.2,9.986e-05,2]
[348589617,1736647838653,-500.0,9.986e-05,2]
[348589618,1736647838667,-686.55,9.986e-05,2]
[348589619,1736647838678,-500.0,9.986e-05,2]
[348589620,1736647838687,-765.46,9.986e-05,2]
[348589621,1736647838696,-500.0,9.986e-05,2]
[348589622,1736647838705,-500.0,9.986e-05,2]
[348589623,1736647838714,-500.0,9.986e-05,2]
[348589624,1736647838725,-517.94,9.986e-05,2]
[348589625,1736647838734,-500.0,9.986e-05,2]
[348589626,1736647838743,-500.0,9.986e-05,2]
[348589627,1736647838752,-598.8,9.986e-05,2]
[348589628,1736647838761,-500.0,9.986e-05,2]
[348589629,1736647838770,-500.0,9.986e-05,2]
[348589630,1736647838778,-661.15,9.986e-05,2]
[348589631,1736647838787,-2148.97,9.986e-05,2]
[348589632,1736647838796,-500.0,9.986e-05,2]
[348589633,1736647838806,-675.29,9.986e-05,2]
[348589634,1736647838815,-876.27,9.986e-05,2]
[348589635,1736647838824,-1434.91,9.986e-05,2]
[348589636,1736647838833,-1000.0,9.986e-05,2]
[348589637,1736647838843,-632.76,9.986e-05,2]
[348589638,1736647838851,-500.0,9.986e-05,2]
[348589639,1736647838860,-1886.91,9.986e-05,2]
[348589640,1736647838869,-1385.41,9.987e-05,2]
[348589641,1736647838878,-744.365,9.991e-05,2]
[348589642,1736647838888,-2225.62,9.997e-05,2]
[348589643,1736647838897,-1126.56,9.997e-05,2]
[348589644,1736647838906,-1395.25,9.997e-05,2]
[348589645,1736647838916,-500.0,9.997e-05,2]
[348589646,1736647838928,-605.0,9.997e-05,2]
[348589647,1736647838937,-1941.43,9.997e-05,2]
[348589648,1736647838946,-689.17,9.997e-05,2]
[348589650,1736647838955,-691.75,9.997e-05,2]
[348589652,1736647838964,-500.0,9.998e-05,2]
[348589654,1736647838973,-500.0,9.998e-05,2]
[348589656,1736647838983,-108312.92948984,9.999e-05,2]
[348589658,1736647838992,-500.0,9.999e-05,2]
[348589659,1736647839002,-500.0,9.999e-05,2]
[348589660,1736647839011,-500.0,9.999e-05,2]
[348589661,1736647839020,-500.0,9.999e-05,2]
[348589662,1736647839029,-255.94273148,9.999e-05,2]
[348589663,1736647839038,-197.1650209,9.999e-05,2]
[348589664,1736647839047,-501.0,0.0001,2]
[348589665,1736647839057,-752224.31611612,0.0001,2]
[348589666,1736647839076,-51520.53665,0.0001,2]
[348589667,1736647839087,-379.99999,0.0001,2]
[348589668,1736647840220,-552.22,9.982e-05,2]
[348589669,1736647840230,-822.8,9.983e-05,2]
[348589670,1736647840239,-133267.62231832,0.0001,2]
[348589671,1736647840250,-13646.31336874,0.0001,2]
[348589672,1736647840259,-24042.71739982,0.0001,2]
[348589673,1736647840271,-15657.0921311,0.0001,2]
[348589674,1736647840281,-24848.2513054,0.0001,2]
[348589675,1736647840291,-1300.0,0.0001,2]
[348589676,1736647840302,-511.10987742,0.0001,2]
[348589677,1736647840313,-562.00676926,0.0001,2]
[348589678,1736647840324,-466.62588,0.0001,2]
[348589679,1736647840335,-4823.27885289,0.0001,2]
[348589680,1736647840346,-31199.9999992,0.0001,2]
[348589681,1736647840370,-9165.67651754,0.0001,2]
[348589682,1736647840381,-428.28720183,0.0001,2]
[348589683,1736647840392,-4941.09052972,0.0001,2]
[348589684,1736647840410,-23000.0,0.0001,2]
[348589685,1736647840421,-724.74036511,0.0001,2]
[348589686,1736647840756,-62023.59609106,0.0001,2]
[348589687,1736647840793,-27874.2801531,0.0001,2]
[348589688,1736647840838,-137896.19052902,0.0001,2]
[348589689,1736647840849,-2170.14205106,0.0001,2]
[348589690,1736647840860,-342.41312756,0.0001,2]
[348589691,1736647840871,-509.40486528,0.0001,2]
[348589692,1736647840882,-427.57144473,0.0001,2]
[348589693,1736647840894,-9085.46180306,0.0001,2]
[348589694,1736647840905,-16012.5,0.0001,2]
[348589695,1736647840916,-529.1999988,0.0001,2]
[348589696,1736647840927,-349.69019323,0.0001,2]
[348589697,1736647840938,-2448.40278486,0.0001,2]
[348589698,1736647841016,-329.375,0.0001,2]
[348589700,1736647841027,-4977.54557552,0.0001,2]
[348589704,1736647843498,-500.0,9.98e-05,2]
[348589705,1736647843509,-825.81,9.981e-05,2]
[348589706,1736647843519,-27.88677863,9.982e-05,2]
[348589707,1736647843531,-472.11322137,9.982e-05,2]
[348589708,1736647843540,-500.0,9.982e-05,2]
[348589709,1736647843550,-2070.10317963,0.0001,2]
[348589710,1736647843632,-84009.89723876,0.0001,2]
[348589711,1736647843645,-337.42123379,0.0001,2]
[348589712,1736647843656,-743.5529996,0.0001,2]
[348589713,1736647843799,-495.2572,9.98e-05,2]
[348589714,1736647843813,-4.7428,9.98e-05,2]
[348589715,1736647843824,-1327.68,9.986e-05,2]
[348589716,1736647843834,-1833.10843548,0.0001,2]
[348589717,1736647843968,-604.0,9.985e-05,2]
[348589718,1736647843980,-618.345,9.985e-05,2]
[348589723,1736647846452,-1174.594074,9.981e-05,2]
[348589725,1736647846462,-500.0,9.982e-05,2]
[348589726,1736647846472,-910.545,9.985e-05,2]
[348589727,1736647846483,-27057.79277996,0.0001,2]
[348589728,1736647846494,-37543.6328268,0.0001,2]
[348589729,1736647846505,-22998.35141104,0.0001,2]
[348589730,1736647846517,-1883.06070885,0.0001,2]
[348589731,1736647846653,-5106.55160518,0.0001,2]
[348589732,1736647846667,-432.82035298,0.0001,2]
[348589733,1736647846680,-482.5,0.0001,2]
[348589734,1736647846692,-8874.39337732,0.0001,2]
[348589735,1736647846704,-3367.09382291,0.0001,2]
[348589736,1736647846716,-10264.40746692,0.0001,2]
[348589737,1736647846820,-727.04806406,0.0001,2]
[348589738,1736647846831,-1680.0,0.0001,2]
[348589740,1736648566435,745.62,8.219e-05,2]
[348589741,1736648727030,402.15221761,0.0002,120]
[348589774,1736649031867,-497.76,8.965e-05,2]
[348589775,1736649031878,-363.1476931,8.994e-05,2]
[348589776,1736649031891,-1139.1123069,8.994e-05,2]
[348589777,1736649031900,-244.55,9.012e-05,2]
[348589778,1736649031911,-250.0,9.026e-05,2]
[348589779,1736649031921,-165.32,9.042e-05,2]
[348589780,1736649031931,-706.71719577,9.042e-05,2]
[348589781,1736649031943,-293.28280423,9.042e-05,2]
[348589782,1736649031952,-224.3,9.189e-05,2]
[348589783,1736649031961,-170.058,9.5e-05,2]
[348589784,1736649031972,-150.0,9.781e-05,2]
[348589785,1736649031983,-288.31919418,9.8e-05,2]
[348589786,1736649031992,-150.0,9.823e-05,2]
[348589787,1736649032002,-300.0,9.824e-05,2]
[348589788,1736649032012,-150.0,9.825e-05,2]
[348589789,1736649032022,-150.99,9.825e-05,2]
[348589790,1736649032035,-7959.49004339,9.825e-05,2]
[348589791,1736649032071,-766.39410763,9.825e-05,2]
[348589792,1736649032082,-300.0,9.825e-05,2]
[348589793,1736649032093,-6515.385521,9.825e-05,2]
[348589794,1736649032163,-549.69032798,9.825e-05,2]
[348589796,1736649032173,-150.0,9.898e-05,2]
[348589798,1736649032182,-3160.3123,9.899e-05,2]
[348589800,1736649032192,-1060.00822067,9.902e-05,2]
[348589802,1736649032201,-53.25217335,9.938e-05,2]
[348589804,1736649032212,-96.74782665,9.938e-05,2]
[348589806,1736649032221,-150.0,9.957e-05,2]
[348589808,1736649032230,-159.83968,9.973e-05,2]
[348589809,1736649032241,-500.0,9.973e-05,2]
[348589810,1736649032250,-150.0,9.976e-05,2]
[348589811,1736649032259,-505.53,9.98e-05,2]
[348589812,1736649032270,-500.0,9.98e-05,2]
[348589813,1736649032281,-529.56,9.98e-05,2]
[348589814,1736649032290,-530.58,9.98e-05,2]
[348589815,1736649032300,-175.70192381,9.98e-05,2]
[348589816,1736649032312,-324.29807619,9.98e-05,2]
[348589817,1736649032321,-500.0,9.98e-05,2]
[348589818,1736649032330,-631.91,9.98e-05,2]
[348589819,1736649032339,-500.0,9.98e-05,2]
[348589820,1736649032349,-500.0,9.98e-05,2]
[348589821,1736649032358,-500.0,9.98e-05,2]
[348589822,1736649032367,-500.0,9.98e-05,2]
[348589823,1736649032376,-500.0,9.98e-05,2]
[348589824,1736649032386,-500.0,9.98e-05,2]
[348589825,1736649032395,-500.0,9.98e-05,2]
[348589826,1736649032404,-500.0,9.98e-05,2]
[348589827,1736649032413,-500.0,9.98e-05,2]
[348589828,1736649032422,-500.0,9.98e-05,2]
[348589829,1736649032432,-612.73,9.98e-05,2]
[348589830,1736649032442,-566.01,9.98e-05,2]
[348589831,1736649032451,-500.0,9.98e-05,2]
[348589832,1736649032461,-500.0,9.98e-05,2]
[348589833,1736649032470,-669.67,9.98e-05,2]
[348589834,1736649032479,-500.0,9.98e-05,2]
[348589835,1736649032490,-500.0,9.98e-05,2]
[348589836,1736649032499,-500.0,9.98e-05,2]
[348589837,1736649032508,-500.0,9.98e-05,2]
[348589838,1736649032518,-505.36,9.98e-05,2]
[348589839,1736649032529,-500.0,9.98e-05,2]
[348589840,1736649032538,-500.0,9.98e-05,2]
[348589842,1736649032548,-599.02,9.98e-05,2]
[348589844,1736649032558,-500.0,9.98e-05,2]
[348589846,1736649032567,-500.0,9.98e-05,2]
[348589848,1736649032576,-500.0,9.98e-05,2]
[348589849,1736649032585,-500.0,9.98e-05,2]
[348589850,1736649032594,-500.0,9.98e-05,2]
[348589851,1736649032603,-500.0,9.98e-05,2]
[348589852,1736649032612,-500.0,9.98e-05,2]
[348589853,1736649032621,-500.0,9.98e-05,2]
[348589854,1736649032631,-549.35,9.98e-05,2]
[348589855,1736649032640,-629.14,9.98e-05,2]
[348589856,1736649032649,-500.0,9.98e-05,2]
[348589857,1736649032658,-341.23600422,9.98e-05,2]
[348589858,1736649032673,-158.76399578,9.98e-05,2]
[348589859,1736649032683,-500.0,9.98e-05,2]
[348589860,1736649032693,-566.65,9.98e-05,2]
[348589861,1736649032703,-500.0,9.98e-05,2]
[348589862,1736649032713,-1092.95,9.98e-05,2]
[348589863,1736649032723,-181.63600422,9.98e-05,2]
[348589864,1736649032737,-512.06399578,9.98e-05,2]
[348589865,1736649032752,-619.72,9.98e-05,2]
[348589866,1736649032761,-526.02340618,9.98e-05,2]
[348589867,1736649037669,-264.40659382,9.98e-05,2]
[348589868,1736649037679,-500.0,9.98e-05,2]
[348589869,1736649037688,-1197.33,9.98e-05,2]
[348589870,1736649037698,-500.0,9.98e-05,2]
[348589871,1736649037707,-500.0,9.98e-05,2]
[348589872,1736649037718,-500.0,9.98e-05,2]
[348589873,1736649037727,-500.0,9.98e-05,2]
[348589874,1736649037738,-1564.21,9.98e-05,2]
[348589875,1736649037747,-500.0,9.98e-05,2]
[348589876,1736649037756,-500.0,9.98e-05,2]
[348589877,1736649037765,-500.0,9.98e-05,2]
[348589878,1736649037775,-500.0,9.98e-05,2]
[348589879,1736649037784,-752.53,9.98e-05,2]
[348589880,1736649037794,-677.42,9.98e-05,2]
[348589881,1736649037803,-969.07,9.98e-05,2]
[348589882,1736649037813,-699.5,9.98e-05,2]
[348589883,1736649037822,-500.0,9.98e-05,2]
[348589884,1736649037832,-500.0,9.98e-05,2]
[348589885,1736649037841,-500.0,9.98e-05,2]
[348589886,1736649037851,-500.0,9.98e-05,2]
[348589887,1736649037861,-2481.0,9.98e-05,2]
[348589888,1736649037870,-500.0,9.98e-05,2]
[348589889,1736649037880,-500.0,9.98e-05,2]
[348589890,1736649037889,-1437.33,9.98e-05,2]
[348589891,1736649037899,-500.0,9.98e-05,2]
[348589892,1736649037908,-583.0,9.98e-05,2]
[348589893,1736649037918,-3666.55,9.98e-05,2]